Cogmind - Beta 13 @@@ ROGUE MODE // 2024.04.15 @ 15:43:54 Player: PeeBee Result: Destroyed by G-34 Mercenary with Small Laser Performance ------------- Evolutions (0) 0 Regions Visited (1) 200 Robots Destroyed (7) 35 Value Destroyed (256) 256 Prototype IDs (0) 0 Alien Tech Used (0) 0 Bonus (0) 0 TOTAL SCORE: 491 Bonus ------- None Cogmind --------- Core Integrity 0/250 Matter 203/400 Energy 99/100 System Corruption 0% Temperature Cool (6) Movement Core (100) Ox1 Location -10/Materials Parts ------- > --- POWER (1) -------- (None) > --- PROPULSION (2) --- (None) > --- UTILITY (2) ------ Medium Matter Pod Signal Interpreter > --- WEAPON (2) ------- Assault Rifle Light Assault Rifle > --- INVENTORY (5) ---- (None) Peak State ------------ > --- POWER ------------ Light Ion Engine > --- PROPULSION ------- Hover Unit Hover Unit > --- UTILITY ---------- Signal Interpreter > --- WEAPON ----------- Light Assault Rifle Light Assault Rifle > --- INVENTORY -------- Hover Unit Assault Rifle [Rating: 6] Favorites ----------- Power Light Ion Engine Engine Light Ion Engine Propulsion Hover Unit Hover Unit Hover Unit Utility Signal Interpreter Storage Medium Matter Pod Processor Signal Interpreter Weapon Light Assault Rifle Ballistic Gun Light Assault Rifle Launcher Grenade Launcher Build | -11 -10 ------- Run | Yrd Mat Slots Evolved . | . . Power . | . . Propulsion . | . . Utility . | . . Weapon . | . . Parts Attached 15 | 3 12 Power 3 | 1 2 Engine 3 | 1 2 Core . | . . Reactor . | . . Propulsion 4 | . 4 Treads . | . . Leg . | . . Wheel . | . . Hover 4 | . 4 Flight . | . . Utility 2 | . 2 Device . | . . Storage 1 | . 1 Processor 1 | . 1 Hackware . | . . Protection . | . . Artifact . | . . Weapon 6 | 2 4 Energy Gun . | . . Energy Cannon . | . . Ballistic Gun 5 | 2 3 Ballistic Cannon . | . . Launcher 1 | . 1 Special Weapon . | . . Impact Weapon . | . . Slashing Weapon . | . . Piercing Weapon . | . . Special Melee Weapon . | . . Unidentified Prototypes . | . . Parts Lost 7 | . 7 Power 2 | . 2 Propulsion 3 | . 3 Utility . | . . Weapon 2 | . 2 Highest Loss Streak 5 | . 5 To Critical Strikes . | . . Average Slot Usage (%) 61 | . 61 Engine 12 | . 12 Hover 10 | . 10 Storage 2 | . 2 Processor 8 | . 8 Ballistic Gun 26 | . 26 Naked Turns . | . . Heaviest Build 8 | 6 8 Greatest Support 12 | 3 12 Greatest Overweight (x) 2 | 1 2 Average Overweight (x) . | . . Largest Inventory Capacity 5 | 5 5 Average Capacity 5 | 5 5 Most Carried 4 | . 4 Average Carried 1 | . 1 Final Capacity 5 | 5 5 Final Carried . | . . Class Distribution -------------------- 90% | Mutant 9% | Scavenger-Mutant Dominant Class ---------------- Mutant | -10/Materials Resources | -11 -10 ----------- Run | Yrd Mat Matter Collected 322 | 238 84 Remotely . | . . Salvage Created 249 | 33 216 Parts 15 | 2 13 Haulers Intercepted . | . . Recyclers Shooed 1 | . 1 Parts Field Recycled . | . . Retrieved Matter . | . . Parts Self-Destructed . | . . Prevented . | . . Kills | -11 -10 ------- Run | Yrd Mat Combat Hostiles Destroyed 6 | 1 5 Guns 5 | 1 4 AOE 1 | . 1 Classes Destroyed 2 | 1 1 Watcher 1 | . 1 Grunt 6 | 1 5 Best Kill Streak 1 | 1 1 Combat Bots Only 1 | 1 1 Max Kills in Single Turn 1 | 1 1 Gunslinging . | . . Exploded 1 | . 1 Melee . | . . Uniques/NPCs Destroyed . | . . Combat | -11 -10 -------- Run | Yrd Mat Hostile Shots Fired 73 | 2 71 Missed 20 | . 20 Damage Taken 694 | 22 672 Core 259 | . 259 Absorbed by Shields . | . . Core Remaining (%) 100 | 100 . Volleys Fired 48 | 2 46 Largest 2 | 2 2 Hottest 50 | 40 50 Shots Fired 82 | 4 78 Gun 80 | 4 76 Cannon . | . . Launcher 2 | . 2 Special . | . . Kinetic 80 | 4 76 Thermal . | . . Explosive 2 | . 2 Electromagnetic . | . . Robot Hit Streak 5 | 1 5 Robot Miss Streak 3 | 1 3 Penetration Max . | . . Secondary Targets . | . . Shots Hit Robots 46 | 2 44 Core Hits 21 | 1 20 Critical Kills . | . . Critical Parts Destroyed . | . . Critical Strikes . | . . Melee Attacks . | . . Impact . | . . Slashing . | . . Piercing . | . . Sneak Attacks . | . . Combat Hostiles . | . . Follow-up Attacks . | . . Damage Inflicted 511 | 30 481 Guns 420 | 30 390 Cannons . | . . Explosions 91 | . 91 Melee . | . . Ramming . | . . Kinetic 420 | 30 390 Thermal . | . . Explosive 91 | . 91 Electromagnetic . | . . Impact . | . . Slashing . | . . Piercing . | . . Highest Corruption . | . . Average Corruption . | . . Corruption Purged . | . . Corruption Blocked . | . . Overload Shots . | . . Overflow Damage . | . . Projectiles . | . . Explosions . | . . Melee . | . . Knockbacks . | . . Impact . | . . Kinetic . | . . Secondary . | . . Self-Inflicted Damage 32 | . 32 Shots 1 | . 1 Rammed . | . . Targets Rammed . | . . Kicked . | . . Crushed . | . . Highest Temperature 40 | 6 40 Average Temperature 9 | 6 9 Received Heat Transfer 384 | 12 372 Siege Activations . | . . Robots Corrupted . | . . Combat Hostiles . | . . Parts Fried . | . . Impact Corruptions . | . . Robots Melted . | . . Combat Hostiles . | . . Parts Melted . | . . Heat Transferred . | . . Parts Sabotaged . | . . Parts Stolen . | . . Parts Stripped . | . . Power Chain Reactions . | . . Alert | -11 -10 ------- Run | Yrd Mat Peak Influence 213 | 35 213 Initial 22 | . 22 Average 115 | 8 133 Maximum Alert Level 1 | . 1 Low Security (%) 88 | 100 87 Level 1 11 | . 12 Level 2 . | . . Level 3 . | . . Level 4 . | . . Level 5 . | . . High Security . | . . Max Security . | . . Squads Dispatched 2 | . 2 Investigation . | . . Extermination . | . . Reinforcement 2 | . 2 Assault . | . . Garrison . | . . Intercept . | . . Searches Triggered . | . . Construction Impeded . | . . Haulers Reinforced . | . . Active Scanning Responses . | . . Cargo Convoy Interrupts . | . . Stealth | -11 -10 --------- Run | Yrd Mat Distress Signals 2 | . 2 Communications Jammed . | . . Distress Signals . | . . Times Spotted 16 | 1 15 Peak Tracking Total 3 | 1 3 Tactical Retreats 1 | . 1 Traps | -11 -10 ------- Run | Yrd Mat Traps Triggered . | . . Indirectly . | . . Trap Hack Attempts . | . . Triggered . | . . Disarmed . | . . Reprogrammed . | . . Reused . | . . Traps Extracted . | . . Installed . | . . Triggered . | . . Machines | -11 -10 ---------- Run | Yrd Mat Machines Disabled 1 | . 1 Max in Single Turn 1 | . 1 Machines Repaired . | . . Machines Dismantled . | . . Machines Sabotaged . | . . Overloaded Fab Kills . | . . Hacking | -11 -10 --------- Run | Yrd Mat Machines Accessed 1 | . 1 Terminals 1 | . 1 Fabricators . | . . Repair Stations . | . . Recycling Units . | . . Scanalyzers . | . . Garrison Access . | . . Total Hacks 2 | . 2 Successful . | . . Failed 2 | . 2 Catastrophic . | . . Database Lockouts . | . . Manual . | . . Terminals 2 | . 2 Fabricators . | . . Repair Stations . | . . Recycling Units . | . . Scanalyzers . | . . Garrison Access . | . . Terminal Hacks . | . . Fabricator Hacks . | . . Repair Station Hacks . | . . Recycling Unit Hacks . | . . Scanalyzer . | . . Garrison Access Hacks . | . . Unauthorized Hacks . | . . Terminals . | . . Fabricators . | . . Repair Stations . | . . Recycling Units . | . . Scanalyzers . | . . Garrison Access . | . . Data Cores Recovered . | . . Used . | . . Hacking Detections 1 | . 1 Full Trace Events . | . . Feedback Events . | . . Feedback Blocked . | . . Robot Schematics Acquired . | . . Robots Built . | . . Authchips . | . . Time . | . . Total Robot Build Rating . | . . Part Schematics Acquired . | . . Parts Built . | . . Authchips . | . . Time . | . . Total Part Build Rating . | . . Parts Repaired . | . . Time . | . . Parts Recycled . | . . Recycled Matter . | . . Retrieved Matter . | . . Retrieved Components . | . . Parts Scanalyzed . | . . Part Schematics Acquired . | . . Parts Damaged . | . . Bothacking | -11 -10 ------------ Run | Yrd Mat Used RIF Installer . | . . Robots Hacked . | . . Non-combat . | . . Combat . | . . Robot Hacks Applied . | . . Relay Couplers Released . | . . Fabnet Peak Effective % . | . . Robots Rewired . | . . Allies Hacked . | . . Hacks Repelled . | . . Allies | -11 -10 -------- Run | Yrd Mat Total Allies . | . . Largest Group . | . . Highest-Rated Group . | . . Highest-Rated Ally . | . . Total Orders . | . . Ally Attacks . | . . Total Damage . | . . Kills . | . . Allies Corrupted . | . . Allies Melted . | . . Intel | -11 -10 ------- Run | Yrd Mat Robot Analysis Total . | . . Derelict Logs Recovered . | . . Drone Launches . | . . Drone Recoveries . | . . Exploration | -11 -10 ------------- Run | Yrd Mat Turns Passed 416 | 60 356 Spaces Moved 352 | 68 284 Core 188 | 68 120 Treads . | . . Legs . | . . Wheels . | . . Hover 164 | . 164 Flight . | . . Fastest Speed 50 | 50 56 Average Speed 79 | 74 80 Slowest Speed 150 | 100 150 Overloaded Moves . | . . Propulsion Burnouts . | . . Robots Hopped . | . . Cave-ins Triggered . | . . Exploration Rate (%) 21 | 7 35 Regions Visited 1 Branch Regions . Pre-discovered Areas . | . . Known Exits Taken . | . . Unknown Exits Taken 1 | 1 . Scrap Searched . | . . Spaces Dug 4 | . 4 Terrain Destroyed 4 | . 4 Melee . | . . Projectile . | . . AOE 4 | . 4 Terrain Rammed . | . . Walls Destroyed . | . . Machines Disabled . | . . Actions | -11 -10 --------- Run | Yrd Mat Total 416 | 72 344 Wait . | . . Move 351 | 67 284 Hop . | . . Pick Up 2 | . 2 Fast Attach 7 | 3 4 Attach 4 | . 4 Detach . | . . Swap 4 | . 4 Drop . | . . Fire 48 | 2 46 Melee . | . . Ram . | . . Kick . | . . Crush . | . . Escape Stasis . | . . Rewire . | . . Trap . | . . Miscellaneous . | . . Route ------- -11/Scrapyard -10/Materials History --------- Turn | Location | Event 2 | -11/Scrapyard | Met Revision 17 40 | -11/Scrapyard | Discovered new exit (range 8) 61 | -11/Scrapyard | Entered Materials 266 | -10/Materials | Core integrity fell below 50% 303 | -10/Materials | Core integrity fell below 20% 337 | -10/Materials | Lost 5 parts (1p2n2w) 417 | -10/Materials | Destroyed by G-34 Mercenary with Small Laser Last Messages --------------- Hover Unit destroyed. U-05 Engineer lays Concrete. Lgt. Assault Rifle destroyed. U-05 Engineer lays Concrete. G-34 Mercenary destroyed. Lgt. Ion Engine destroyed. U-05 Engineer lays Concrete. U-05 Engineer builds a Wall. U-05 Engineer lays Concrete. U-05 Engineer builds a Wall. U-05 Engineer lays Concrete. Acquired Med. Matter Pod. Hover Unit destroyed. Lgt. Ion Engine destroyed. K-01 Serf collects debris. T-07 Excavator is excavating. K-01 Serf collects debris. W-16 Scout sends out distress signal. K-01 Serf collects debris. [Achievement: First Step to Greatness] Map ----- +----------------------------------------------------+ | ????????????????????????????????????????????????? | | ????????????????????????????????????????????????? | | ????????????????????????????????????????????????? | | ????????????????????????????????????????????????? | | ????????????????????????????? #????????????????? | | ????????????????????????????# ???????????????? | | ????????????????????????????# [??????????????? | | ????????????????????????????+ ???????????????? | | ??????????????????#?????????# ???????????????? | | ??????????????????# ????????# ????????????????? | | ??????????????????+ ???????## ????????????????? | | ??????????????????# ??????"" #????????????????? | | ??????????????????# ??????? #????????????????? | | ??????????????????# ??????# #????????????????? | | ??????????????##### ###???# #????????????????? | | ????????????? %####### #???###??????????? | | ????????????? #####T######?????? | | ?????????????? w #?????? | | ??????????????????# #?????? | | ??????????????????# ""% g #?????? | | ??????????????????# " a############ ##?????? | | ??????????????????# """ "#?????????# #??????? | | ??????????????????# T#?????????# #??????? | | ??????????????????# "#?????????# #??????? | | ??????????????????# """ ##?????????# ######## | | ???????????######## """ @ #?#####????# ## # | | ?????????? """ ##!!!!##???# ## # | | ?????????? #! !#???# ## # | | ?????????? k # #???# ## # | | ???????????# % # ##### ## # | | ???????????# r # # | | ???????????# ^ + # | | ???????????#""" ######### # # | | ????????????"T " " #??###??# # # | | ????????????""" """ """ #? #??# # # | | ???????????? """ """ # #??# # = # | | ???????????? """ """ # #???# # # | | ???????????? "" "" g #???# ####### | | ????????????? """ """ u # ##???# #?????? | | ?????????????? "" "" ####????# #?????? | | ????????????? """ """ #?######/####??? | | ???????????# " " #?# #??? | | ???????????# #?# #??? | | ???????????+ #?# #??? | | ???????????# ######## ##?# #??? | | ???????????? ############### #??# #??? | | ??????????????????# ## #??# !* #??? | | ??????????????????# ## #??# !*%#??? | | ??????????????????# """ ## ##?# !* #??? | | ??????????????????# """ # #######+#####??? | +----------------------------------------------------+ Best States ------------- Heat Dissipation 25 Energy Generation 10 Energy Capacity 125 Matter Stores 300 Matter Capacity 400 Sight Range 16 Terrain Scan Density 10 Evasion (%) 53 Item Schematics ----------------- None Robot Schematics ------------------ None Fabricated ------------ Nothing Alien Tech Used ----------------- None Achievements -------------- First Step to Greatness Challenges ------------ None Game ------ Seed PhasingSniperRedirector Manual? 0 Play Time 00:09:33 Cumulative 0.1 hours Start 2024.04.15 @ 15:30:47 End 2024.04.15 @ 15:43:54 Sessions 1 Manual Loads 0 Difficulty Rogue Special Mode None Game No. 1 Rogue 1 Adventurer 0 Explorer 0 Win Type - Total 0 Types 0/0/0/0/0/0/0/0/0 Lore% 0 Gallery% 1 Achievement% 0 Wizard Run 0 Options --------- Layout 1 ASCII 0 Keyboard 0 Movement Arrows Keybinds 0 Fullscreen 1 Font 32/SmallcapsGlow Map View 50x35 Zoom Use 0% Tactical HUD 0 Map Filters NONE Filters NONE Steam 0 RUN: 51f32df0-5cee-4b30-a27e-76627f33ba83